fUSD/lending_fUSD_20240923
["ID","MTS","AMOUNT","RATE_DAILY","PERIOD"]
[338968258,1727094632750,-5867.80288017,0.00012833,2]
[338968259,1727094632760,-318.48800031,0.00012867,2]
[338968260,1727094632770,-11778.87987303,0.0001287,2]
[338968261,1727094632779,-7695.25873678,0.0001287,2]
[338968262,1727094632788,-500.0,0.00012873,2]
[338968263,1727094632798,-500.0,0.00012873,2]
[338968264,1727094632808,-151.48,0.0001289,2]
[338968265,1727094632818,-413.078,0.00012894,2]
[338968266,1727094632827,-500.0,0.00012896,2]
[338968267,1727094632837,-200.0,0.00012896,2]
[338968268,1727094632848,-5122.11,0.00012897,2]
[338968269,1727094632857,-500.0,0.00012897,2]
[338968270,1727094632871,-500.0,0.00012897,2]
[338968271,1727094632880,-546.79,0.00012897,2]
[338968272,1727094632889,-1368.04,0.00012897,2]
[338968273,1727094632899,-845.34,0.00012897,2]
[338968274,1727094632908,-602.55,0.00012897,2]
[338968275,1727094632917,-500.0,0.00012897,2]
[338968276,1727094632927,-500.0,0.00012897,2]
[338968277,1727094632937,-500.0,0.00012897,2]
[338968278,1727094632947,-500.0,0.00012897,2]
[338968279,1727094632956,-500.0,0.00012897,2]
[338968280,1727094632966,-976.87,0.00012897,2]
[338968281,1727094632976,-2283.96,0.00012897,2]
[338968282,1727094632985,-168.68225784,0.00012898,2]
[338968283,1727094632995,-158.10949927,0.00012898,2]
[338968284,1727094633004,-500.0,0.00012898,2]
[338968285,1727094633014,-876.89,0.00012898,2]
[338968286,1727094633024,-1230.7,0.00012898,2]
[338968287,1727094633034,-20000.84,0.00012898,2]
[338968288,1727094633044,-500.0,0.00012898,2]
[338968289,1727094633054,-43370.23,0.00012898,2]
[338968290,1727094633065,-500.0,0.00012898,2]
[338968291,1727094633075,-500.0,0.00012898,2]
[338968292,1727094633085,-500.0,0.00012898,2]
[338968293,1727094633094,-2284.77,0.00012898,2]
[338968294,1727094633104,-7890.44,0.00012898,2]
[338968295,1727094633115,-500.0,0.00012898,2]
[338968296,1727094633127,-1068.08,0.00012898,2]
[338968297,1727094633137,-500.0,0.00012898,2]
[338968298,1727094633147,-500.0,0.00012898,2]
[338968299,1727094633157,-887.81,0.00012898,2]
[338968300,1727094633166,-546.58339668,0.00012898,2]
[338968301,1727094633176,-590.51789745,0.00012898,2]
[338968302,1727094633186,-1261.74,0.00012898,2]
[338968303,1727094633195,-500.0,0.00012898,2]
[338968304,1727094633205,-500.0,0.00012898,2]
[338968305,1727094633215,-6410.52,0.00012898,2]
[338968306,1727094633225,-500.0,0.00012898,2]
[338968307,1727094633235,-3607.74,0.00012898,2]
[338968308,1727094633245,-500.0,0.00012898,2]
[338968309,1727094633255,-1916.34,0.00012898,2]
[338968310,1727094633265,-500.0,0.00012898,2]
[338968311,1727094633274,-500.0,0.00012898,2]
[338968312,1727094633284,-500.0,0.00012898,2]
[338968313,1727094633293,-500.0,0.00012898,2]
[338968314,1727094633303,-500.0,0.00012898,2]
[338968315,1727094633314,-3343.0973,0.00012899,2]
[338968316,1727094633324,-946.3744,0.00012899,2]
[338968317,1727094633334,-1474.6495,0.00012899,2]
[338968318,1727094633344,-444.10175694,0.00012899,2]
[338968319,1727094633353,-500.0,0.00012899,2]
[338968320,1727094633363,-500.0,0.00012899,2]
[338968321,1727094633374,-500.0,0.00012899,2]
[338968322,1727094633385,-500.0,0.00012899,2]
[338968323,1727094633395,-500.0,0.00012899,2]
[338968324,1727094633405,-500.0,0.00012899,2]
[338968325,1727094633415,-500.0,0.00012899,2]
[338968326,1727094633425,-500.0,0.00012899,2]
[338968327,1727094633435,-500.0,0.00012899,2]
[338968328,1727094633445,-500.0,0.00012899,2]
[338968329,1727094633455,-500.0,0.00012899,2]
[338968330,1727094633464,-500.0,0.00012899,2]
[338968331,1727094633474,-500.0,0.00012899,2]
[338968332,1727094633487,-501.84,0.00012899,2]
[338968333,1727094633497,-817.08,0.00012899,2]
[338968334,1727094633506,-500.0,0.00012899,2]
[338968335,1727094633516,-500.0,0.00012899,2]
[338968336,1727094633528,-500.0,0.00012899,2]
[338968337,1727094633538,-500.0,0.00012899,2]
[338968338,1727094633547,-168.02482706,0.00012899,2]
[338968339,1727094633557,-500.0,0.00012899,2]
[338968340,1727094633568,-500.0,0.00012899,2]
[338968341,1727094633579,-500.0,0.00012899,2]
[338968342,1727094633589,-500.0,0.00012899,2]
[338968343,1727094633599,-500.0,0.00012899,2]
[338968344,1727094633609,-500.0,0.00012899,2]
[338968345,1727094633620,-500.0,0.00012899,2]
[338968346,1727094633630,-500.0,0.00012899,2]
[338968347,1727094633642,-500.0,0.00012899,2]
[338968348,1727094633652,-500.0,0.00012899,2]
[338968349,1727094633662,-500.0,0.00012899,2]
[338968350,1727094633672,-500.0,0.00012899,2]
[338968351,1727094633682,-500.0,0.00012899,2]
[338968352,1727094633691,-500.0,0.00012899,2]
[338968353,1727094633702,-205.37588263,0.00012899,2]
[338968354,1727094633711,-500.0,0.00012899,2]
[338968355,1727094633721,-292.1547181,0.00012899,2]
[338968356,1727094633731,-500.0,0.00012899,2]
[338968357,1727094633742,-500.0,0.00012899,2]
[338968358,1727094633752,-500.0,0.00012899,2]
[338968359,1727094633761,-500.0,0.00012899,2]
[338968360,1727094633771,-500.0,0.00012899,2]
[338968361,1727094633780,-500.0,0.00012899,2]
[338968362,1727094633790,-500.0,0.00012899,2]
[338968363,1727094633800,-500.0,0.00012899,2]
[338968364,1727094633809,-500.0,0.00012899,2]
[338968365,1727094633819,-500.0,0.00012899,2]
[338968366,1727094633829,-500.0,0.00012899,2]
[338968367,1727094633838,-500.0,0.00012899,2]
[338968368,1727094633848,-635.55,0.00012899,2]
[338968369,1727094633857,-500.0,0.00012899,2]
[338968370,1727094633869,-979.77,0.00012899,2]
[338968371,1727094633879,-500.0,0.00012899,2]
[338968372,1727094633889,-500.0,0.00012899,2]
[338968373,1727094633898,-500.0,0.00012899,2]
[338968374,1727094633908,-500.0,0.00012899,2]
[338968375,1727094633918,-500.0,0.00012899,2]
[338968376,1727094633927,-300.88210741,0.00012899,2]
[338968377,1727094633937,-500.0,0.00012899,2]
[338968378,1727094633947,-500.0,0.00012899,2]
[338968379,1727094633957,-500.0,0.00012899,2]
[338968380,1727094633966,-500.0,0.00012899,2]
[338968381,1727094633976,-500.0,0.00012899,2]
[338968382,1727094633985,-500.0,0.00012899,2]
[338968383,1727094633994,-500.0,0.00012899,2]
[338968384,1727094634004,-500.0,0.00012899,2]
[338968385,1727094634013,-500.0,0.00012899,2]
[338968386,1727094634023,-500.0,0.00012899,2]
[338968387,1727094634032,-500.0,0.00012899,2]
[338968388,1727094634041,-500.0,0.00012899,2]
[338968389,1727094634051,-500.0,0.00012899,2]
[338968390,1727094634060,-500.0,0.00012899,2]
[338968391,1727094634070,-500.0,0.00012899,2]
[338968392,1727094634079,-500.0,0.00012899,2]
[338968393,1727094634088,-500.0,0.00012899,2]
[338968394,1727094634098,-500.0,0.00012899,2]
[338968395,1727094634107,-500.0,0.00012899,2]
[338968396,1727094634119,-500.0,0.00012899,2]
[338968397,1727094634129,-2596.51,0.00012899,2]
[338968398,1727094634138,-645.01,0.00012899,2]
[338968399,1727094634148,-500.0,0.00012899,2]
[338968400,1727094634157,-500.0,0.00012899,2]
[338968401,1727094634167,-500.0,0.00012899,2]
[338968402,1727094634176,-563.13016997,0.00012899,2]
[338968403,1727094634186,-500.0,0.00012899,2]
[338968404,1727094634196,-855.02,0.00012899,2]
[338968405,1727094634205,-883.24,0.00012899,2]
[338968406,1727094634215,-500.0,0.00012899,2]
[338968407,1727094634224,-500.0,0.00012899,2]
[338968408,1727094634234,-500.0,0.00012899,2]
[338968409,1727094634244,-500.0,0.00012899,2]
[338968410,1727094634254,-500.0,0.00012899,2]
[338968411,1727094634263,-500.0,0.00012899,2]
[338968412,1727094634274,-500.0,0.00012899,2]
[338968413,1727094634284,-500.0,0.00012899,2]
[338968414,1727094634293,-500.0,0.00012899,2]
[338968415,1727094634302,-500.0,0.00012899,2]
[338968416,1727094634312,-500.0,0.00012899,2]
[338968417,1727094634321,-1258.23,0.00012899,2]
[338968418,1727094634330,-500.0,0.00012899,2]
[338968419,1727094634340,-500.0,0.00012899,2]
[338968420,1727094634350,-500.0,0.00012899,2]
[338968421,1727094634360,-500.0,0.00012899,2]
[338968422,1727094634372,-8589.37,0.00012899,2]
[338968423,1727094634382,-500.0,0.00012899,2]
[338968424,1727094634391,-500.0,0.00012899,2]
[338968425,1727094634400,-1013.87,0.00012899,2]
[338968426,1727094634410,-500.0,0.00012899,2]
[338968427,1727094634420,-673.59,0.00012899,2]
[338968428,1727094634429,-500.0,0.00012899,2]
[338968429,1727094634438,-500.0,0.00012899,2]
[338968430,1727094634448,-500.0,0.00012899,2]
[338968431,1727094634458,-611.83,0.00012899,2]
[338968432,1727094634467,-500.0,0.00012899,2]
[338968433,1727094634478,-500.0,0.00012899,2]
[338968434,1727094634491,-500.0,0.00012899,2]
[338968435,1727094634500,-500.0,0.00012899,2]
[338968436,1727094634510,-500.0,0.00012899,2]
[338968437,1727094634520,-500.0,0.00012899,2]
[338968438,1727094634530,-500.0,0.00012899,2]
[338968439,1727094634540,-500.0,0.00012899,2]
[338968440,1727094634549,-500.0,0.00012899,2]
[338968441,1727094634559,-500.0,0.00012899,2]
[338968442,1727094634568,-500.0,0.00012899,2]
[338968443,1727094634578,-500.0,0.00012899,2]
[338968444,1727094634587,-7890.44,0.00012899,2]
[338968445,1727094634597,-187.05114191,0.00012899,2]
[338968446,1727094634606,-168.28273339,0.00012899,2]
[338968447,1727094634618,-5122.11,0.00012899,2]
[338968448,1727094634627,-500.0,0.00012899,2]
[338968449,1727094634637,-500.0,0.00012899,2]
[338968450,1727094634647,-500.0,0.00012899,2]
[338968451,1727094634656,-500.0,0.00012899,2]
[338968452,1727094634667,-1068.08,0.00012899,2]
[338968453,1727094634677,-500.0,0.00012899,2]
[338968454,1727094634687,-500.0,0.00012899,2]
[338968455,1727094634696,-500.0,0.00012899,2]
[338968456,1727094634705,-500.0,0.00012899,2]
[338968457,1727094634714,-500.0,0.00012899,2]
[338968458,1727094634724,-500.0,0.00012899,2]
[338968459,1727094634733,-546.79,0.00012899,2]
[338968460,1727094634742,-500.0,0.00012899,2]
[338968461,1727094634751,-1368.04,0.00012899,2]
[338968462,1727094634761,-500.0,0.00012899,2]
[338968463,1727094634771,-887.81,0.00012899,2]
[338968464,1727094634782,-845.34,0.00012899,2]
[338968465,1727094634790,-500.0,0.00012899,2]
[338968466,1727094634800,-289.63567654,0.00012899,2]
[338968467,1727094634809,-602.55,0.00012899,2]
[338968468,1727094634819,-625.00686618,0.00012899,2]
[338968469,1727094634828,-500.0,0.00012899,2]
[338968470,1727094634838,-500.0,0.00012899,2]
[338968471,1727094634847,-500.0,0.00012899,2]
[338968472,1727094634856,-500.0,0.00012899,2]
[338968473,1727094634868,-500.0,0.00012899,2]
[338968474,1727094634877,-500.0,0.00012899,2]
[338968475,1727094634887,-500.0,0.00012899,2]
[338968476,1727094634896,-500.0,0.00012899,2]
[338968477,1727094634906,-498.6046499,0.00012899,2]
[338968478,1727094634915,-500.0,0.00012899,2]
[338968479,1727094634925,-500.0,0.00012899,2]
[338968480,1727094634934,-307.58054622,0.00012899,2]
[338968481,1727094634943,-500.0,0.00012899,2]
[338968482,1727094634953,-500.0,0.00012899,2]
[338968483,1727094634963,-500.0,0.00012899,2]
[338968484,1727094634974,-976.87,0.00012899,2]
[338968485,1727094634984,-2283.96,0.00012899,2]
[338968486,1727094634995,-289.63567653,0.000129,2]
[338968487,1727094635005,-625.00686618,0.000129,2]
[338968488,1727094635014,-307.58054621,0.000129,2]
[338968489,1727094635023,-943.3389,0.000129,2]
[338968490,1727094635033,-1554.5756,0.000129,2]
[338968491,1727094635043,-39022.9126,0.000129,2]
[338968492,1727094635052,-100000.0,0.000129,2]
[338968493,1727094635062,-7594.8912,0.000129,2]
[338968494,1727094635072,-5707.528,0.000129,2]
[338968495,1727094635082,-150.0,0.000129,2]
[338968496,1727094635091,-300.08,0.000129,2]
[338968497,1727094635100,-998.22,0.000129,2]
[338968498,1727094635111,-200.0,0.000129,4]
[338968499,1727094635120,-238.67296237,0.000129,2]
[338968500,1727094635129,-238.67296237,0.000129,2]
[338968501,1727094635139,-238.67296237,0.000129,2]
[338968502,1727094635150,-238.67296237,0.000129,2]
[338968503,1727094635161,-238.67296237,0.000129,2]
[338968504,1727094635170,-238.67296237,0.000129,2]
[338968505,1727094635179,-238.67296237,0.000129,2]
[338968506,1727094635188,-238.67296237,0.000129,2]
[338968507,1727094635197,-238.67296237,0.000129,2]
[338968508,1727094635206,-238.67296237,0.000129,2]
[338968509,1727094635216,-238.67296237,0.000129,2]
[338968510,1727094635224,-238.67296237,0.000129,2]
[338968511,1727094635233,-238.67296237,0.000129,2]
[338968512,1727094635244,-238.67296237,0.000129,2]
[338968513,1727094635254,-238.67296237,0.000129,2]
[338968514,1727094635265,-238.67296237,0.000129,2]
[338968515,1727094635276,-238.67296237,0.000129,2]
[338968516,1727094635287,-238.67296237,0.000129,2]
[338968517,1727094635297,-238.67296237,0.000129,2]
[338968518,1727094635306,-239.17,0.000129,2]
[338968519,1727094635316,-289.63567653,0.000129,2]
[338968520,1727094635325,-158.69634875,0.000129,2]
[338968521,1727094635334,-158.69634875,0.000129,2]
[338968522,1727094635343,-158.69634875,0.000129,2]
[338968523,1727094635352,-158.69634875,0.000129,2]
[338968524,1727094635363,-159.19,0.000129,2]
[338968525,1727094635379,-625.00686618,0.000129,2]
[338968526,1727094635390,-168.12039883,0.000129,2]
[338968527,1727094635399,-168.12039883,0.000129,2]
[338968528,1727094635408,-168.12039883,0.000129,2]
[338968529,1727094635417,-168.12039883,0.000129,2]
[338968530,1727094635426,-168.12039883,0.000129,2]
[338968531,1727094635435,-168.62,0.000129,2]
[338968532,1727094635444,-318.48800031,0.000129,2]
[338968533,1727094635453,-307.58054621,0.000129,2]
[338968534,1727094635463,-150.0,0.00012902,2]
[338968535,1727094635472,-1500.0,0.00012921,2]
[338968536,1727094635485,-150.0,0.00012933,2]
[338968537,1727094635495,-150.0,0.00012935,2]
[338968538,1727094635504,-150.0,0.00012945,2]
[338968539,1727094635513,-151.48,0.00012963,2]
[338968540,1727094635524,-412.33224577,0.00012973,2]
[338968541,1727094635533,-500.0,0.00012973,2]
[338968542,1727094635542,-500.0,0.00012973,2]
[338968543,1727094635552,-500.0,0.00012973,2]
[338968544,1727094635565,-20000.84,0.00012978,2]
[338968545,1727094635575,-43370.23,0.00012978,2]
[338968546,1727094635586,-500.0,0.00012978,2]
[338968547,1727094635595,-500.0,0.00012978,2]
[338968548,1727094635605,-2284.77,0.00012978,2]
[338968549,1727094635614,-500.0,0.00012978,2]
[338968550,1727094635623,-935.66,0.00012979,2]
[338968551,1727094635633,-811.0,0.00012979,2]
[338968552,1727094635643,-150.0,0.00012979,2]
[338968553,1727094635654,-558.0,0.00012979,2]
[338968554,1727094635664,-1903.0,0.00012979,2]
[338968555,1727094635673,-553.0,0.00012979,2]
[338968556,1727094635682,-807.0,0.00012979,2]
[338968557,1727094635692,-852.755,0.00012979,2]
[338968558,1727094635701,-248.0,0.00012979,2]
[338968559,1727094635710,-3347.0,0.00012979,2]
[338968560,1727094635719,-5868.0,0.00012979,2]
[338968561,1727094635729,-150.0,0.00012979,2]
[338968562,1727094635738,-13490.0,0.00012979,2]
[338968563,1727094635747,-1147.0,0.00012979,2]
[338968564,1727094635756,-625.0,0.00012979,2]
[338968565,1727094635765,-151.48,0.0001298,2]
[338968566,1727094635775,-151.48,0.00012981,2]
[338968567,1727094635785,-156.0,0.0001299,2]
[338968568,1727094635794,-68895.56077604,0.0001299,3]
[338968569,1727094635803,-5122.11,0.0001299,2]
[338968570,1727094635813,-500.0,0.0001299,2]
[338968571,1727094635823,-500.0,0.0001299,2]
[338968572,1727094635834,-546.79,0.0001299,2]
[338968573,1727094635843,-1368.04,0.0001299,2]
[338968574,1727094635852,-845.34,0.0001299,2]
[338968575,1727094635862,-602.55,0.0001299,2]
[338968576,1727094635876,-500.0,0.0001299,2]
[338968577,1727094635886,-241.47787101,0.0001299,2]
[338968578,1727094635895,-500.0,0.0001299,2]
[338968579,1727094635904,-500.0,0.0001299,2]
[338968580,1727094635913,-500.0,0.0001299,2]
[338968581,1727094635923,-976.87,0.0001299,2]
[338968582,1727094635932,-2283.96,0.0001299,2]
[338968583,1727094635941,-500.0,0.00012991,2]
[338968584,1727094635951,-876.89,0.00012991,2]
[338968585,1727094635960,-1230.7,0.00012991,2]
[338968586,1727094635970,-500.0,0.00012991,2]
[338968587,1727094635981,-150.0,0.00012991,2]
[338968588,1727094635992,-500.0,0.00012991,2]
[338968589,1727094636002,-500.0,0.00012991,2]
[338968590,1727094636011,-1261.74,0.00012991,2]
[338968591,1727094636022,-6410.52,0.00012991,2]
[338968592,1727094636031,-3607.74,0.00012991,2]
[338968593,1727094636040,-1916.34,0.00012991,2]
[338968594,1727094636050,-500.0,0.00012991,2]
[338968595,1727094636059,-500.0,0.00012991,2]
[338968596,1727094636069,-500.0,0.00012991,2]
[338968597,1727094636078,-500.0,0.00012992,2]
[338968598,1727094636087,-500.0,0.00012992,2]
[338968599,1727094636097,-500.0,0.00012992,2]
[338968600,1727094636107,-500.0,0.00012992,2]
[338968601,1727094636117,-342.052,0.00012992,2]
[338968602,1727094636126,-265.73512367,0.00012992,2]
[338968603,1727094636135,-500.0,0.00012992,2]
[338968604,1727094636145,-500.0,0.00012992,2]
[338968605,1727094636154,-500.0,0.00012992,2]
[338968606,1727094636163,-500.0,0.00012992,2]
[338968607,1727094636172,-500.0,0.00012992,2]
[338968608,1727094636181,-500.0,0.00012992,2]
[338968609,1727094636191,-500.0,0.00012992,2]
[338968610,1727094636200,-500.0,0.00012992,2]
[338968611,1727094636210,-500.0,0.00012992,2]
[338968612,1727094636220,-500.0,0.00012992,2]
[338968613,1727094636229,-500.0,0.00012992,2]
[338968614,1727094636238,-500.0,0.00012992,2]
[338968615,1727094636248,-2779.24,0.00012992,2]
[338968616,1727094636257,-150.0,0.00012992,2]
[338968617,1727094636266,-7890.44,0.00012992,2]
[338968618,1727094636276,-1068.08,0.00012992,2]
[338968619,1727094636285,-500.0,0.00012992,2]
[338968620,1727094636295,-500.0,0.00012992,2]
[338968621,1727094636304,-500.0,0.00012992,2]
[338968622,1727094636313,-502.16234457,0.00012992,2]
[338968623,1727094636322,-500.0,0.00012992,2]
[338968624,1727094636331,-500.0,0.00012992,2]
[338968625,1727094636341,-433.05859171,0.00012992,2]
[338968626,1727094636349,-500.0,0.00012992,2]
[338968627,1727094636359,-500.0,0.00012992,2]
[338968628,1727094636368,-500.0,0.00012992,2]
[338968629,1727094636377,-500.0,0.00012992,2]
[338968630,1727094636386,-478.8096217,0.00012992,2]
[338968631,1727094636395,-500.0,0.00012992,2]
[338968632,1727094636404,-500.0,0.00012992,2]
[338968633,1727094636414,-500.0,0.00012992,2]
[338968634,1727094636423,-500.0,0.00012992,2]
[338968635,1727094636432,-887.81,0.00012992,2]
[338968636,1727094636442,-500.0,0.00012992,2]
[338968637,1727094636451,-500.0,0.00012992,2]
[338968638,1727094636460,-500.0,0.00012992,2]
[338968639,1727094636470,-500.0,0.00012992,2]
[338968640,1727094636480,-500.0,0.00012992,2]
[338968641,1727094636492,-500.0,0.00012993,2]
[338968642,1727094636502,-500.0,0.00012993,2]
[338968643,1727094636512,-500.0,0.00012993,2]
[338968644,1727094636522,-500.0,0.00012993,2]
[338968645,1727094636534,-500.0,0.00012993,2]
[338968646,1727094636544,-482.10535448,0.00012993,2]
[338968647,1727094636554,-500.0,0.00012993,2]
[338968648,1727094636565,-500.0,0.00012993,2]
[338968649,1727094636575,-500.0,0.00012993,2]
[338968650,1727094636584,-500.0,0.00012993,2]
[338968651,1727094636594,-500.0,0.00012993,2]
[338968652,1727094636604,-500.0,0.00012993,2]
[338968653,1727094636613,-500.0,0.00012993,2]
[338968654,1727094636624,-500.0,0.00012993,2]
[338968655,1727094636633,-500.0,0.00012993,2]
[338968656,1727094636643,-500.0,0.00012993,2]
[338968657,1727094636652,-500.0,0.00012993,2]
[338968658,1727094636662,-500.0,0.00012993,2]
[338968659,1727094636671,-500.0,0.00012993,2]
[338968660,1727094636850,-635.55,0.00012993,2]
[338968661,1727094636860,-500.0,0.00012993,2]
[338968662,1727094636871,-979.77,0.00012993,2]
[338968663,1727094636880,-500.0,0.00012993,2]
[338968664,1727094636890,-500.0,0.00012993,2]
[338968665,1727094636900,-500.0,0.00012993,2]
[338968666,1727094636910,-500.0,0.00012993,2]
[338968667,1727094636919,-500.0,0.00012993,2]
[338968668,1727094636929,-500.0,0.00012993,2]
[338968669,1727094636938,-500.0,0.00012993,2]
[338968670,1727094636949,-500.0,0.00012993,2]
[338968671,1727094636959,-500.0,0.00012993,2]
[338968672,1727094636968,-2596.51,0.00012993,2]
[338968673,1727094636977,-645.01,0.00012993,2]
[338968674,1727094636986,-500.0,0.00012993,2]
[338968675,1727094636996,-500.0,0.00012993,2]
[338968676,1727094637006,-883.24,0.00012993,2]
[338968677,1727094637015,-500.0,0.00012993,2]
[338968678,1727094637025,-500.0,0.00012993,2]
[338968679,1727094637035,-500.0,0.00012993,2]
[338968680,1727094637046,-500.0,0.00012993,2]
[338968681,1727094637056,-1258.23,0.00012993,2]
[338968682,1727094637066,-554.32052946,0.00012993,2]
[338968683,1727094637076,-500.0,0.00012993,2]
[338968684,1727094637086,-500.0,0.00012993,2]
[338968685,1727094637096,-500.0,0.00012993,2]
[338968686,1727094637106,-500.0,0.00012993,2]
[338968687,1727094637116,-500.0,0.00012993,2]
[338968688,1727094637126,-500.0,0.00012993,2]
[338968689,1727094637135,-500.0,0.00012993,2]
[338968690,1727094637145,-500.0,0.00012993,2]
[338968691,1727094637156,-500.0,0.00012993,2]
[338968692,1727094637168,-500.0,0.00012993,2]
[338968693,1727094637180,-500.0,0.00012994,2]
[338968694,1727094637189,-500.0,0.00012994,2]
[338968695,1727094637200,-500.0,0.00012994,2]
[338968696,1727094637210,-500.0,0.00012994,2]
[338968697,1727094637219,-500.0,0.00012994,2]
[338968698,1727094637230,-281.1657536,0.00012994,2]
[338968699,1727094637240,-500.0,0.00012994,2]
[338968700,1727094637249,-500.0,0.00012994,2]
[338968701,1727094637259,-488.98934877,0.00012994,2]
[338968702,1727094637269,-500.0,0.00012994,2]
[338968703,1727094637280,-500.0,0.00012994,2]
[338968704,1727094637291,-500.0,0.00012994,2]
[338968705,1727094637301,-500.0,0.00012994,2]
[338968706,1727094637311,-500.0,0.00012994,2]
[338968707,1727094637320,-500.0,0.00012994,2]
[338968708,1727094637330,-500.0,0.00012994,2]
[338968709,1727094637340,-369.230193,0.00012994,2]
[338968710,1727094637350,-419.003996,0.00012994,2]
[338968711,1727094637359,-500.0,0.00012994,2]
[338968712,1727094637369,-500.0,0.00012994,2]
[338968713,1727094637379,-500.0,0.00012994,2]
[338968714,1727094637389,-500.0,0.00012994,2]
[338968715,1727094637400,-176.96765341,0.00012994,2]
[338968716,1727094637412,-500.0,0.00012994,2]
[338968717,1727094637423,-500.0,0.00012994,2]
[338968718,1727094637432,-500.0,0.00012994,2]
[338968719,1727094637443,-500.0,0.00012994,2]
[338968720,1727094637453,-500.0,0.00012994,2]
[338968722,1727094637463,-500.0,0.00012994,2]
[338968723,1727094637473,-546.57625632,0.00012994,2]
[338968724,1727094637484,-500.0,0.00012994,2]
[338968726,1727094637495,-500.0,0.00012994,2]
[338968727,1727094637504,-500.0,0.00012994,2]
[338968730,1727094637514,-500.0,0.00012994,2]
[338968732,1727094637523,-500.0,0.00012994,2]
[338968734,1727094637534,-500.0,0.00012994,2]
[338968735,1727094637544,-500.0,0.00012994,2]
[338968736,1727094637554,-500.0,0.00012994,2]
[338968737,1727094637563,-500.0,0.00012994,2]
[338968738,1727094637573,-500.0,0.00012994,2]
[338968739,1727094637583,-500.0,0.00012994,2]
[338968740,1727094637592,-500.0,0.00012994,2]
[338968741,1727094637602,-500.0,0.00012994,2]
[338968742,1727094637614,-500.0,0.00012994,2]
[338968743,1727094637624,-2779.24,0.00012994,2]
[338968744,1727094637633,-500.0,0.00012994,2]
[338968745,1727094637642,-500.0,0.00012994,2]
[338968746,1727094637651,-500.0,0.00012994,2]
[338968747,1727094637661,-500.0,0.00012994,2]
[338968748,1727094637670,-500.0,0.00012994,2]
[338968749,1727094637680,-500.0,0.00012994,2]
[338968750,1727094637689,-500.0,0.00012994,2]
[338968751,1727094637699,-8589.37,0.00012994,2]
[338968752,1727094637708,-500.0,0.00012994,2]
[338968753,1727094637717,-1013.87,0.00012994,2]
[338968754,1727094637728,-673.59,0.00012994,2]
[338968755,1727094637738,-611.83,0.00012994,2]
[338968756,1727094637747,-500.0,0.00012994,2]
[338968757,1727094637756,-500.0,0.00012994,2]
[338968758,1727094637765,-500.0,0.00012995,2]
[338968759,1727094637775,-876.89,0.00012995,2]
[338968760,1727094637785,-1230.7,0.00012995,2]
[338968761,1727094637794,-20000.84,0.00012995,2]
[338968762,1727094637803,-500.0,0.00012995,2]
[338968763,1727094637813,-43370.23,0.00012995,2]